[Event "*** SCC Grand Prix: Titled Tuesday Blitz"]
[Site "Chess.com"]
[Date "2020.06.09"]
[Round "8"]
[White "nihalsarin"]
[Black "WIDBIFS"]
[Result "1-0"]
[WhiteElo "2990"]
[BlackElo "2691"]
[TimeControl "180+1"]
[EndTime "10:36:08 PDT"]
[Termination "nihalsarin won by resignation"]

1. c4 {[%clk 0:03:00.9]} 1... Nf6 {[%clk 0:03:00.2]} 2. Nc3 {[%clk 0:03:00.1]}
2... g6 {[%clk 0:03:00.7]} 3. e4 {[%clk 0:03:00.1]} 3... d6 {[%clk 0:03:00.9]}
4. d4 {[%clk 0:03:00.1]} 4... Bg7 {[%clk 0:03:01.5]} 5. h3 {[%clk 0:03:00.7]}
5... O-O {[%clk 0:03:01.9]} 6. Be3 {[%clk 0:03:01.4]} 6... Na6 {[%clk 0:02:56]}
7. g4 {[%clk 0:02:51.3]} 7... e5 {[%clk 0:02:49]} 8. d5 {[%clk 0:02:49.7]} 8...
c6 {[%clk 0:02:49]} 9. Nge2 {[%clk 0:02:48.1]} 9... Bd7 {[%clk 0:02:43]} 10. Ng3
{[%clk 0:02:45.5]} 10... Ne8 {[%clk 0:02:11.9]} 11. Be2 {[%clk 0:02:39.6]} 11...
Nec7 {[%clk 0:02:11.9]} 12. a3 {[%clk 0:02:25.7]} 12... cxd5 {[%clk 0:02:11.7]}
13. cxd5 {[%clk 0:02:26.6]} 13... b5 {[%clk 0:02:08]} 14. b4 {[%clk 0:02:25.8]}
14... Bf6 {[%clk 0:01:41.1]} 15. Qd2 {[%clk 0:02:16.2]} 15... Bh4 {[%clk
0:01:38.6]} 16. Rg1 {[%clk 0:01:45.8]} 16... f6 {[%clk 0:01:34.6]} 17. Rc1
{[%clk 0:01:22.1]} 17... Bg5 {[%clk 0:01:23.2]} 18. Rh1 {[%clk 0:01:04.4]} 18...
Bh4 {[%clk 0:01:11.8]} 19. Rg1 {[%clk 0:01:03.7]} 19... Bg5 {[%clk 0:01:11.9]}
20. Rh1 {[%clk 0:01:02.2]} 20... Bh4 {[%clk 0:01:12.3]} 21. Nf1 {[%clk
0:00:44.6]} 21... Qe7 {[%clk 0:00:54.7]} 22. Nh2 {[%clk 0:00:43.3]} 22... Bg5
{[%clk 0:00:55.2]} 23. h4 {[%clk 0:00:41.3]} 23... Bxe3 {[%clk 0:00:53.9]} 24.
Qxe3 {[%clk 0:00:42.2]} 24... Rfc8 {[%clk 0:00:46.1]} 25. Kd2 {[%clk 0:00:30.9]}
25... Nb8 {[%clk 0:00:21.6]} 26. Nf1 {[%clk 0:00:29.8]} 26... a6 {[%clk
0:00:21.1]} 27. Ng3 {[%clk 0:00:29.6]} 27... Be8 {[%clk 0:00:20.9]} 28. h5
{[%clk 0:00:26.1]} 28... g5 {[%clk 0:00:19.8]} 29. Nf5 {[%clk 0:00:25.8]} 29...
Qf8 {[%clk 0:00:20.3]} 30. Qb6 {[%clk 0:00:24.6]} 30... Nd7 {[%clk 0:00:08.9]}
31. Qxd6 {[%clk 0:00:24.7]} 31... Qxd6 {[%clk 0:00:05.2]} 32. Nxd6 {[%clk
0:00:25.6]} 32... Rcb8 {[%clk 0:00:05]} 33. Nd1 {[%clk 0:00:25.8]} 33... Ra7
{[%clk 0:00:04.7]} 34. Ne3 {[%clk 0:00:26.1]} 34... Kf8 {[%clk 0:00:04.9]} 35.
Rc3 {[%clk 0:00:21.1]} 35... Nb6 {[%clk 0:00:05.4]} 36. Rhc1 {[%clk 0:00:19.8]}
36... Nba8 {[%clk 0:00:03.1]} 37. Nxe8 {[%clk 0:00:13.6]} 37... Kxe8 {[%clk
0:00:02.1]} 38. Nf5 {[%clk 0:00:13]} 38... Kd7 {[%clk 0:00:02.4]} 39. Rc6 {[%clk
0:00:13.5]} 39... Ne8 {[%clk 0:00:02.5]} 40. Re6 {[%clk 0:00:13.7]} 40... Nac7
{[%clk 0:00:01.5]} 41. Re7+ {[%clk 0:00:13.5]} 41... Kd8 {[%clk 0:00:02.4]} 42.
Rxh7 {[%clk 0:00:11.1]} 42... Rb6 {[%clk 0:00:02.2]} 43. Rc6 {[%clk 0:00:09.9]}
43... Rxc6 {[%clk 0:00:02.4]} 44. dxc6 {[%clk 0:00:10.8]} 44... a5 {[%clk
0:00:03.3]} 45. Rd7+ {[%clk 0:00:10.9]} 45... Kc8 {[%clk 0:00:03.3]} 46. Ne7+
{[%clk 0:00:11.8]} 1-0

[Event "*** SCC Grand Prix: Titled Tuesday Blitz"]
[Site "Chess.com"]
[Date "2020.06.09"]
[Round "8"]
[White "Berardino"]
[Black "ZverevLev"]
[Result "1-0"]
[WhiteElo "2530"]
[BlackElo "2280"]
[TimeControl "180+1"]
[EndTime "10:36:09 PDT"]
[Termination "Berardino won by resignation"]

1. e4 {[%clk 0:03:00.9]} 1... c5 {[%clk 0:02:58.5]} 2. Nf3 {[%clk 0:03:01.1]}
2... d6 {[%clk 0:02:55.2]} 3. d4 {[%clk 0:03:00.1]} 3... cxd4 {[%clk 0:02:55.4]}
4. Nxd4 {[%clk 0:03:01]} 4... Nf6 {[%clk 0:02:54.5]} 5. Nc3 {[%clk 0:03:01.2]}
5... a6 {[%clk 0:02:54.7]} 6. a3 {[%clk 0:02:57]} 6... e6 {[%clk 0:02:52.1]} 7.
f4 {[%clk 0:02:56]} 7... Nc6 {[%clk 0:02:49.8]} 8. Be3 {[%clk 0:02:54.6]} 8...
Be7 {[%clk 0:02:48.9]} 9. Bd3 {[%clk 0:02:54.6]} 9... O-O {[%clk 0:02:48.2]} 10.
O-O {[%clk 0:02:54.7]} 10... Qc7 {[%clk 0:02:46.3]} 11. Kh1 {[%clk 0:02:52]}
11... b5 {[%clk 0:02:42]} 12. Qf3 {[%clk 0:02:50]} 12... Bb7 {[%clk 0:02:40.2]}
13. Qg3 {[%clk 0:02:49.6]} 13... Rfe8 {[%clk 0:02:23.4]} 14. Nxc6 {[%clk
0:02:17.7]} 14... Bxc6 {[%clk 0:02:20.7]} 15. e5 {[%clk 0:02:17.8]} 15... Nd5
{[%clk 0:02:13.5]} 16. Nxd5 {[%clk 0:02:15.4]} 16... Bxd5 {[%clk 0:02:11.7]} 17.
Bd4 {[%clk 0:02:04]} 17... Bf8 {[%clk 0:01:53.1]} 18. Qh4 {[%clk 0:01:29.5]}
18... g6 {[%clk 0:01:42.8]} 19. exd6 {[%clk 0:01:26.3]} 19... Qxd6 {[%clk
0:01:22.6]} 20. Qf6 {[%clk 0:01:07.1]} 20... e5 {[%clk 0:01:20.3]} 21. Bxe5
{[%clk 0:01:00.9]} 21... Qxf6 {[%clk 0:01:18.7]} 22. Bxf6 {[%clk 0:01:01.8]}
22... Bd6 {[%clk 0:01:13.7]} 23. Rad1 {[%clk 0:00:57]} 23... Rac8 {[%clk
0:01:09]} 24. f5 {[%clk 0:00:53.4]} 24... Bb7 {[%clk 0:01:00.3]} 25. fxg6 {[%clk
0:00:52.2]} 25... hxg6 {[%clk 0:00:59.4]} 26. c3 {[%clk 0:00:40.6]} 26... Re6
{[%clk 0:00:53]} 27. Rde1 {[%clk 0:00:28.6]} 27... Rce8 {[%clk 0:00:50.2]} 28.
Rxe6 {[%clk 0:00:28.5]} 28... Rxe6 {[%clk 0:00:51.1]} 29. Bd4 {[%clk 0:00:28.6]}
29... Bd5 {[%clk 0:00:44.2]} 30. Kg1 {[%clk 0:00:27.9]} 30... f5 {[%clk
0:00:42.1]} 31. g3 {[%clk 0:00:20.3]} 31... Be5 {[%clk 0:00:29.4]} 32. Bxe5
{[%clk 0:00:17.6]} 32... Rxe5 {[%clk 0:00:30.3]} 33. Kf2 {[%clk 0:00:17.7]}
33... g5 {[%clk 0:00:28.1]} 34. Re1 {[%clk 0:00:17.5]} 34... Rxe1 {[%clk
0:00:27.1]} 35. Kxe1 {[%clk 0:00:18.4]} 35... Be6 {[%clk 0:00:26.6]} 36. Kf2
{[%clk 0:00:17]} 36... Kf7 {[%clk 0:00:27]} 37. h4 {[%clk 0:00:17.1]} 37... gxh4
{[%clk 0:00:26]} 38. gxh4 {[%clk 0:00:18]} 38... Kg6 {[%clk 0:00:25.4]} 39. Kg3
{[%clk 0:00:18.2]} 39... Kh5 {[%clk 0:00:24.4]} 40. Be2+ {[%clk 0:00:18]} 40...
Kg6 {[%clk 0:00:24.2]} 41. Kf4 {[%clk 0:00:18.5]} 41... Kf6 {[%clk 0:00:24.8]}
42. Bf3 {[%clk 0:00:18.5]} 42... Bf7 {[%clk 0:00:24.2]} 43. b4 {[%clk
0:00:18.1]} 43... Kg6 {[%clk 0:00:19.9]} 44. Bb7 {[%clk 0:00:17.2]} 44... Kh5
{[%clk 0:00:18.7]} 45. Bxa6 {[%clk 0:00:16.3]} 45... Be8 {[%clk 0:00:19.1]} 46.
Kxf5 {[%clk 0:00:13.1]} 46... Kxh4 {[%clk 0:00:18.3]} 47. Ke5 {[%clk 0:00:13.3]}
47... Kg4 {[%clk 0:00:18.5]} 48. Kd4 {[%clk 0:00:13.5]} 48... Kf4 {[%clk
0:00:18.7]} 49. Kc5 {[%clk 0:00:14]} 49... Ke4 {[%clk 0:00:19.2]} 50. Bxb5
{[%clk 0:00:14.2]} 50... Bf7 {[%clk 0:00:19.1]} 51. a4 {[%clk 0:00:13.1]} 1-0

[Event "*** SCC Grand Prix: Titled Tuesday Blitz"]
[Site "Chess.com"]
[Date "2020.06.09"]
[Round "8"]
[White "AliKa2810"]
[Black "Love_craft"]
[Result "1-0"]
[WhiteElo "2588"]
[BlackElo "2449"]
[TimeControl "180+1"]
[EndTime "10:36:11 PDT"]
[Termination "AliKa2810 won on time"]

1. d4 {[%clk 0:02:29.3]} 1... Nf6 {[%clk 0:02:39.5]} 2. c4 {[%clk 0:02:28.1]}
2... g6 {[%clk 0:02:29.6]} 3. Nc3 {[%clk 0:02:27.2]} 3... d6 {[%clk 0:02:29.6]}
4. e4 {[%clk 0:02:26.9]} 4... Bg7 {[%clk 0:02:30.1]} 5. Be2 {[%clk 0:02:26.9]}
5... Nbd7 {[%clk 0:02:28.9]} 6. Be3 {[%clk 0:02:24.9]} 6... e6 {[%clk 0:02:25]}
7. h3 {[%clk 0:02:17.3]} 7... O-O {[%clk 0:02:19.5]} 8. Nf3 {[%clk 0:02:17.4]}
8... c5 {[%clk 0:02:15.4]} 9. O-O {[%clk 0:02:08.7]} 9... cxd4 {[%clk
0:02:12.9]} 10. Nxd4 {[%clk 0:02:09.6]} 10... Nc5 {[%clk 0:02:12.3]} 11. Qc2
{[%clk 0:02:09.3]} 11... a6 {[%clk 0:02:10.4]} 12. Rad1 {[%clk 0:02:06.3]} 12...
Qc7 {[%clk 0:02:09.8]} 13. Rfe1 {[%clk 0:01:46.2]} 13... b6 {[%clk 0:02:06.5]}
14. Bf3 {[%clk 0:01:14.5]} 14... Bb7 {[%clk 0:02:06.3]} 15. b3 {[%clk 0:01:07]}
15... Rfd8 {[%clk 0:02:05.7]} 16. Qd2 {[%clk 0:01:02.4]} 16... Nfxe4 {[%clk
0:01:25.9]} 17. Bxe4 {[%clk 0:00:54.3]} 17... Nxe4 {[%clk 0:01:18.6]} 18. Nxe4
{[%clk 0:00:53.7]} 18... Bxe4 {[%clk 0:01:19.5]} 19. Bg5 {[%clk 0:00:52.2]}
19... Bb7 {[%clk 0:01:15]} 20. Bxd8 {[%clk 0:00:51]} 20... Rxd8 {[%clk
0:01:15.9]} 21. Qe3 {[%clk 0:00:37.9]} 21... d5 {[%clk 0:00:58.5]} 22. cxd5
{[%clk 0:00:32.9]} 22... Rxd5 {[%clk 0:00:52.8]} 23. Nxe6 {[%clk 0:00:13.2]}
23... fxe6 {[%clk 0:00:32]} 24. Qxe6+ {[%clk 0:00:14.1]} 24... Qf7 {[%clk
0:00:31.9]} 25. Rxd5 {[%clk 0:00:14.6]} 25... Bxd5 {[%clk 0:00:29.1]} 26. Qxb6
{[%clk 0:00:15.2]} 26... h5 {[%clk 0:00:20.1]} 27. Qxa6 {[%clk 0:00:14.9]} 27...
Qf5 {[%clk 0:00:19.6]} 28. Qe2 {[%clk 0:00:13.9]} 28... Kh7 {[%clk 0:00:17.5]}
29. Rd1 {[%clk 0:00:14.2]} 29... Bc6 {[%clk 0:00:16.4]} 30. a4 {[%clk
0:00:12.6]} 30... Qf7 {[%clk 0:00:09.9]} 31. Qe3 {[%clk 0:00:08.3]} 31... Ba8
{[%clk 0:00:09.2]} 32. b4 {[%clk 0:00:07]} 32... Qb7 {[%clk 0:00:09.2]} 33. Qf3
{[%clk 0:00:05.6]} 33... Qa6 {[%clk 0:00:04.9]} 34. Qb3 {[%clk 0:00:02.5]} 34...
Qb7 {[%clk 0:00:04.4]} 35. f3 {[%clk 0:00:01.8]} 35... Qa7+ {[%clk 0:00:04.6]}
36. Kh2 {[%clk 0:00:02.2]} 36... Be5+ {[%clk 0:00:04.2]} 37. Kh1 {[%clk
0:00:02.8]} 37... Qc7 {[%clk 0:00:01.9]} 38. b5 {[%clk 0:00:02.9]} 38... Bg3
{[%clk 0:00:01.8]} 39. Qe6 {[%clk 0:00:02.7]} 39... Kh6 {[%clk 0:00:01.4]} 40.
Qe3+ {[%clk 0:00:01.7]} 40... Bf4 {[%clk 0:00:01.1]} 41. Qd3 {[%clk 0:00:01.8]}
41... Qf7 {[%clk 0:00:01.2]} 42. Qd7 {[%clk 0:00:01.4]} 42... Qf6 {[%clk
0:00:01.1]} 43. Qd8 {[%clk 0:00:01.6]} 1-0

[Event "*** SCC Grand Prix: Titled Tuesday Blitz"]
[Site "Chess.com"]
[Date "2020.06.09"]
[Round "8"]
[White "Vandros57"]
[Black "Azoulas1"]
[Result "1/2-1/2"]
[WhiteElo "2220"]
[BlackElo "1990"]
[TimeControl "180+1"]
[EndTime "10:36:11 PDT"]
[Termination "Game drawn by repetition"]

1. d4 {[%clk 0:03:00.9]} 1... Nf6 {[%clk 0:02:57.8]} 2. Nf3 {[%clk 0:02:59.8]}
2... e6 {[%clk 0:02:55.6]} 3. c4 {[%clk 0:02:58.2]} 3... c5 {[%clk 0:02:54.6]}
4. e3 {[%clk 0:02:52.9]} 4... d6 {[%clk 0:02:51.4]} 5. Nc3 {[%clk 0:02:51.2]}
5... Nbd7 {[%clk 0:02:49.9]} 6. g3 {[%clk 0:02:46.4]} 6... a6 {[%clk 0:02:48.7]}
7. Bg2 {[%clk 0:02:45.6]} 7... Rb8 {[%clk 0:02:47.4]} 8. O-O {[%clk 0:02:44.6]}
8... b6 {[%clk 0:02:46.1]} 9. b3 {[%clk 0:02:43.3]} 9... Bb7 {[%clk 0:02:43.6]}
10. Bb2 {[%clk 0:02:42.9]} 10... Be7 {[%clk 0:02:42]} 11. Qe2 {[%clk 0:02:42.2]}
11... O-O {[%clk 0:02:39.3]} 12. Rfd1 {[%clk 0:02:41.4]} 12... Qc7 {[%clk
0:02:37]} 13. Ne1 {[%clk 0:02:38.1]} 13... Bxg2 {[%clk 0:02:35.4]} 14. Nxg2
{[%clk 0:02:37.6]} 14... b5 {[%clk 0:02:35.2]} 15. dxc5 {[%clk 0:02:31.1]} 15...
Nxc5 {[%clk 0:02:31.8]} 16. Rac1 {[%clk 0:02:17.5]} 16... bxc4 {[%clk
0:02:27.1]} 17. Qxc4 {[%clk 0:02:16.1]} 17... d5 {[%clk 0:02:25.9]} 18. Qe2
{[%clk 0:02:07.8]} 18... Qa7 {[%clk 0:02:24.2]} 19. Nf4 {[%clk 0:02:03.2]} 19...
Nce4 {[%clk 0:02:18.8]} 20. Nxe4 {[%clk 0:02:00.6]} 20... Nxe4 {[%clk
0:02:17.4]} 21. Rc6 {[%clk 0:01:52.5]} 21... Bf6 {[%clk 0:02:13.7]} 22. Bxf6
{[%clk 0:01:49.3]} 22... Nxf6 {[%clk 0:02:12.4]} 23. Qxa6 {[%clk 0:01:44.4]}
23... Qxa6 {[%clk 0:02:08.7]} 24. Rxa6 {[%clk 0:01:43.4]} 24... Rfc8 {[%clk
0:02:08.5]} 25. Nd3 {[%clk 0:01:15]} 25... g6 {[%clk 0:02:05.9]} 26. h3 {[%clk
0:01:11.7]} 26... Rc2 {[%clk 0:02:02.6]} 27. Rf1 {[%clk 0:00:58]} 27... Ne4
{[%clk 0:01:59.9]} 28. Ra7 {[%clk 0:00:56.3]} 28... Rd2 {[%clk 0:01:52.8]} 29.
Ne5 {[%clk 0:00:55]} 29... Rf8 {[%clk 0:01:52]} 30. b4 {[%clk 0:00:45.4]} 30...
f6 {[%clk 0:01:41.1]} 31. Ng4 {[%clk 0:00:42.9]} 31... h5 {[%clk 0:01:37.3]} 32.
Nh2 {[%clk 0:00:41.9]} 32... h4 {[%clk 0:01:23.4]} 33. g4 {[%clk 0:00:39.3]}
33... Ng5 {[%clk 0:01:21.2]} 34. Kg2 {[%clk 0:00:37.2]} 34... f5 {[%clk
0:01:19.2]} 35. Nf3 {[%clk 0:00:28.7]} 35... Nxf3 {[%clk 0:01:10.3]} 36. Kxf3
{[%clk 0:00:28.3]} 36... fxg4+ {[%clk 0:01:02.3]} 37. Kxg4 {[%clk 0:00:28.3]}
37... Rfxf2 {[%clk 0:01:01.3]} 38. Rxf2 {[%clk 0:00:27.6]} 38... Rxf2 {[%clk
0:01:00.8]} 39. b5 {[%clk 0:00:23.3]} 39... Rb2 {[%clk 0:00:56.9]} 40. a4 {[%clk
0:00:22.1]} 40... e5 {[%clk 0:00:56.9]} 41. Rb7 {[%clk 0:00:18.7]} 41... d4
{[%clk 0:00:56.6]} 42. exd4 {[%clk 0:00:16.9]} 42... exd4 {[%clk 0:00:56]} 43.
a5 {[%clk 0:00:13.5]} 43... d3 {[%clk 0:00:55.2]} 44. a6 {[%clk 0:00:13]} 44...
d2 {[%clk 0:00:54.7]} 45. Rd7 {[%clk 0:00:11.7]} 45... Rxb5 {[%clk 0:00:50.8]}
46. a7 {[%clk 0:00:08.6]} 46... Ra5 {[%clk 0:00:47.5]} 47. Rxd2 {[%clk
0:00:06.3]} 47... Rxa7 {[%clk 0:00:46.8]} 48. Kxh4 {[%clk 0:00:05.4]} 48... Kg7
{[%clk 0:00:46.7]} 49. Kg5 {[%clk 0:00:04.8]} 49... Ra5+ {[%clk 0:00:45.5]} 50.
Kg4 {[%clk 0:00:04.8]} 50... Rf5 {[%clk 0:00:44.9]} 51. Kg3 {[%clk 0:00:04.5]}
51... Rh5 {[%clk 0:00:43.2]} 52. h4 {[%clk 0:00:04.2]} 52... Rf5 {[%clk
0:00:41.7]} 53. Rd7+ {[%clk 0:00:03.6]} 53... Kh6 {[%clk 0:00:40.4]} 54. Rd6
{[%clk 0:00:03.2]} 54... Rh5 {[%clk 0:00:39.9]} 55. Rc6 {[%clk 0:00:03]} 55...
Rf5 {[%clk 0:00:39.2]} 56. Kg4 {[%clk 0:00:03]} 56... Rh5 {[%clk 0:00:38.6]} 57.
Rd6 {[%clk 0:00:03]} 57... Rf5 {[%clk 0:00:36.7]} 58. Rc6 {[%clk 0:00:02.9]}
58... Rh5 {[%clk 0:00:36.5]} 59. Rd6 {[%clk 0:00:02.9]} 59... Rf5 {[%clk
0:00:36.5]} 60. Rc6 {[%clk 0:00:02.8]} 1/2-1/2

[Event "*** SCC Grand Prix: Titled Tuesday Blitz"]
[Site "Chess.com"]
[Date "2020.06.09"]
[Round "8"]
[White "1f3_2g41-0"]
[Black "DanielTitichoca"]
[Result "1-0"]
[WhiteElo "2217"]
[BlackElo "2322"]
[TimeControl "180+1"]
[EndTime "10:36:13 PDT"]
[Termination "1f3_2g41-0 won by checkmate"]

1. e4 {[%clk 0:03:00.9]} 1... c5 {[%clk 0:02:20.2]} 2. Nf3 {[%clk 0:02:59.3]}
2... Nc6 {[%clk 0:02:19.8]} 3. Bb5 {[%clk 0:02:58.7]} 3... g6 {[%clk 0:02:19.1]}
4. O-O {[%clk 0:02:58]} 4... Bg7 {[%clk 0:02:18.9]} 5. c3 {[%clk 0:02:57.3]}
5... Nf6 {[%clk 0:02:17.4]} 6. d4 {[%clk 0:02:57.4]} 6... cxd4 {[%clk
0:02:14.4]} 7. cxd4 {[%clk 0:02:58.3]} 7... Nxe4 {[%clk 0:02:09.7]} 8. d5 {[%clk
0:02:58.3]} 8... Nd6 {[%clk 0:02:07.6]} 9. Ba4 {[%clk 0:02:22.4]} 9... b5 {[%clk
0:01:59]} 10. dxc6 {[%clk 0:02:18.5]} 10... bxa4 {[%clk 0:01:58.5]} 11. Qxa4
{[%clk 0:02:03.1]} 11... dxc6 {[%clk 0:01:57.5]} 12. Qxc6+ {[%clk 0:02:02.9]}
12... Bd7 {[%clk 0:01:50.6]} 13. Qc2 {[%clk 0:02:01.6]} 13... O-O {[%clk
0:01:33.1]} 14. Nc3 {[%clk 0:02:00.2]} 14... Rc8 {[%clk 0:01:32.9]} 15. Bf4
{[%clk 0:01:58.2]} 15... Qa5 {[%clk 0:01:30.8]} 16. Rac1 {[%clk 0:01:40.8]}
16... Bc6 {[%clk 0:01:28.5]} 17. Qd3 {[%clk 0:01:31.2]} 17... Bb7 {[%clk
0:01:21.1]} 18. Rfe1 {[%clk 0:01:24]} 18... Rfd8 {[%clk 0:01:20]} 19. Qe2 {[%clk
0:01:14.9]} 19... Nf5 {[%clk 0:01:17.3]} 20. Ne5 {[%clk 0:01:09]} 20... Nd4
{[%clk 0:01:15.7]} 21. Qg4 {[%clk 0:01:03.4]} 21... e6 {[%clk 0:01:14.5]} 22. h4
{[%clk 0:00:54.5]} 22... Nf5 {[%clk 0:01:12]} 23. h5 {[%clk 0:00:47]} 23... Rd4
{[%clk 0:01:11.4]} 24. hxg6 {[%clk 0:00:42.6]} 24... hxg6 {[%clk 0:01:10]} 25.
Nf3 {[%clk 0:00:20.6]} 25... e5 {[%clk 0:00:59.6]} 26. Nxd4 {[%clk 0:00:19.5]}
26... Nxd4 {[%clk 0:00:57.3]} 27. Bg3 {[%clk 0:00:18.9]} 27... Qb6 {[%clk
0:00:51.3]} 28. Nd5 {[%clk 0:00:17.2]} 28... Rxc1 {[%clk 0:00:45.1]} 29. Nxb6
{[%clk 0:00:09.7]} 29... Rxe1+ {[%clk 0:00:44.5]} 30. Kh2 {[%clk 0:00:10.4]}
30... axb6 {[%clk 0:00:44.6]} 31. Qd7 {[%clk 0:00:10.8]} 31... Nf3+ {[%clk
0:00:29.6]} 32. gxf3 {[%clk 0:00:09.8]} 32... Bxf3 {[%clk 0:00:29.6]} 33. Kh3
{[%clk 0:00:06]} 33... Rh1+ {[%clk 0:00:25]} 34. Bh2 {[%clk 0:00:06]} 34... Bh6
{[%clk 0:00:21.5]} 35. Qe8+ {[%clk 0:00:04.2]} 35... Bf8 {[%clk 0:00:15.3]} 36.
Qxe5 {[%clk 0:00:03.9]} 36... f5 {[%clk 0:00:15.8]} 37. Kg3 {[%clk 0:00:02.8]}
37... Be4 {[%clk 0:00:14.6]} 38. f3 {[%clk 0:00:02.4]} 38... Bb1 {[%clk
0:00:12.8]} 39. Kg2 {[%clk 0:00:03.1]} 39... Rc1 {[%clk 0:00:12]} 40. Qe6+
{[%clk 0:00:03.8]} 40... Kg7 {[%clk 0:00:11.7]} 41. Be5+ {[%clk 0:00:04.4]}
41... Kh7 {[%clk 0:00:11.4]} 42. Qf7+ {[%clk 0:00:04.6]} 42... Kh6 {[%clk
0:00:11.6]} 43. Qxf8+ {[%clk 0:00:05.2]} 43... Kg5 {[%clk 0:00:12]} 44. Qf7
{[%clk 0:00:05]} 44... Kh5 {[%clk 0:00:12.8]} 45. Qh7+ {[%clk 0:00:04.8]} 45...
Kg5 {[%clk 0:00:12.7]} 46. f4+ {[%clk 0:00:05.5]} 46... Kg4 {[%clk 0:00:13]} 47.
Qh3# {[%clk 0:00:06.2]} 1-0

[Event "*** SCC Grand Prix: Titled Tuesday Blitz"]
[Site "Chess.com"]
[Date "2020.06.09"]
[Round "8"]
[White "szachuspl"]
[Black "Vesper2018"]
[Result "1-0"]
[WhiteElo "2561"]
[BlackElo "2420"]
[TimeControl "180+1"]
[EndTime "10:36:14 PDT"]
[Termination "szachuspl won by resignation"]

1. d4 {[%clk 0:03:00.9]} 1... Nf6 {[%clk 0:02:59.9]} 2. c4 {[%clk 0:02:59.5]}
2... g6 {[%clk 0:03:00.1]} 3. Nc3 {[%clk 0:02:59.2]} 3... Bg7 {[%clk 0:03:00.1]}
4. e4 {[%clk 0:02:59.6]} 4... d6 {[%clk 0:03:00.3]} 5. Be2 {[%clk 0:03:00.3]}
5... O-O {[%clk 0:03:00.5]} 6. Nf3 {[%clk 0:03:01]} 6... e5 {[%clk 0:02:59.9]}
7. Be3 {[%clk 0:03:00.6]} 7... exd4 {[%clk 0:02:54.8]} 8. Nxd4 {[%clk
0:03:00.2]} 8... Re8 {[%clk 0:02:54.3]} 9. f3 {[%clk 0:03:00.2]} 9... c6 {[%clk
0:02:54.9]} 10. Bf2 {[%clk 0:02:57.9]} 10... d5 {[%clk 0:02:55]} 11. exd5 {[%clk
0:02:58.4]} 11... cxd5 {[%clk 0:02:55.2]} 12. c5 {[%clk 0:02:59.1]} 12... Nc6
{[%clk 0:02:54]} 13. O-O {[%clk 0:02:56.8]} 13... Bf8 {[%clk 0:02:41]} 14. Nb3
{[%clk 0:02:56.2]} 14... a6 {[%clk 0:02:29.3]} 15. Qd2 {[%clk 0:02:46.7]} 15...
Be6 {[%clk 0:02:08.1]} 16. Rfd1 {[%clk 0:02:44.1]} 16... Rc8 {[%clk 0:01:58.3]}
17. Rac1 {[%clk 0:02:26.1]} 17... Ne5 {[%clk 0:01:45.8]} 18. Na4 {[%clk
0:02:19.4]} 18... Nc4 {[%clk 0:01:35.1]} 19. Qf4 {[%clk 0:02:08.4]} 19... Nd7
{[%clk 0:01:26.6]} 20. Bf1 {[%clk 0:01:39.7]} 20... Qf6 {[%clk 0:01:14.2]} 21.
Qxf6 {[%clk 0:01:34.6]} 21... Nxf6 {[%clk 0:01:14.5]} 22. Nd4 {[%clk 0:01:18.7]}
22... Bh6 {[%clk 0:01:12.7]} 23. Rc3 {[%clk 0:01:09]} 23... Ne5 {[%clk
0:00:54.5]} 24. Nb6 {[%clk 0:01:05]} 24... Rcd8 {[%clk 0:00:47.2]} 25. b4 {[%clk
0:01:04.7]} 25... Nfd7 {[%clk 0:00:41.9]} 26. Nxe6 {[%clk 0:00:56.3]} 26... fxe6
{[%clk 0:00:40.3]} 27. Na4 {[%clk 0:00:53.9]} 27... Nb8 {[%clk 0:00:36.9]} 28.
a3 {[%clk 0:00:53.1]} 28... Nbc6 {[%clk 0:00:36.5]} 29. Nb2 {[%clk 0:00:53.2]}
29... Rd7 {[%clk 0:00:26.5]} 30. Nd3 {[%clk 0:00:47.7]} 30... Nc4 {[%clk
0:00:21.1]} 31. Ne1 {[%clk 0:00:44.9]} 31... Red8 {[%clk 0:00:19.1]} 32. Nc2
{[%clk 0:00:44.4]} 32... Nb2 {[%clk 0:00:17.4]} 33. Re1 {[%clk 0:00:42.4]} 33...
Bd2 {[%clk 0:00:17.2]} 34. Rb3 {[%clk 0:00:37]} 34... Bxe1 {[%clk 0:00:17.5]}
35. Bxe1 {[%clk 0:00:37]} 35... Nc4 {[%clk 0:00:17.9]} 36. Bg3 {[%clk
0:00:32.1]} 36... e5 {[%clk 0:00:18]} 37. Rd3 {[%clk 0:00:31.6]} 37... Ne7
{[%clk 0:00:14.8]} 38. Rd1 {[%clk 0:00:30.2]} 38... Nf5 {[%clk 0:00:14.9]} 39.
Bf2 {[%clk 0:00:30]} 39... Nb2 {[%clk 0:00:12.1]} 40. Rb1 {[%clk 0:00:29.7]}
40... Na4 {[%clk 0:00:12]} 41. Na1 {[%clk 0:00:29.5]} 41... d4 {[%clk
0:00:11.8]} 42. Bd3 {[%clk 0:00:27.6]} 42... Kg7 {[%clk 0:00:11.9]} 43. Nb3
{[%clk 0:00:27.2]} 43... Nc3 {[%clk 0:00:11.6]} 44. Re1 {[%clk 0:00:25.7]} 44...
Re7 {[%clk 0:00:10.9]} 45. Nd2 {[%clk 0:00:25.3]} 45... Re6 {[%clk 0:00:11]} 46.
Nc4 {[%clk 0:00:25.1]} 46... Rde8 {[%clk 0:00:10.1]} 47. g4 {[%clk 0:00:24.3]}
47... Nh6 {[%clk 0:00:08.8]} 48. Nd6 {[%clk 0:00:24.4]} 48... Nf7 {[%clk
0:00:08.7]} 49. Nxe8+ {[%clk 0:00:24.2]} 49... Rxe8 {[%clk 0:00:09.2]} 50. Bxd4
{[%clk 0:00:23.9]} 50... Rd8 {[%clk 0:00:08.2]} 51. Bxc3 {[%clk 0:00:23.6]}
51... Rxd3 {[%clk 0:00:08.3]} 52. Bxe5+ {[%clk 0:00:24]} 52... Nxe5 {[%clk
0:00:08.3]} 53. Rxe5 {[%clk 0:00:24.5]} 53... Kf6 {[%clk 0:00:08]} 54. Re8
{[%clk 0:00:22.6]} 54... Rxa3 {[%clk 0:00:07.9]} 55. Rb8 {[%clk 0:00:22.6]}
55... Rxf3 {[%clk 0:00:06.9]} 56. Rf8+ {[%clk 0:00:22.3]} 1-0